[Event "Titled Tuesday Blitz October 11 Early 2022"]
[White "Lucas, Arthur"]
[Black "Ulziikhishigjargal, Ochirkhuyag"]
[WhiteFideId "26093073"]
[BlackFideId "4903188"]
[WhiteElo "2251"]
[BlackElo "1920"]
[Result "0-1"]
[Round "06"]
[TimeControl "180+1"]
[Date "2022.10.12"]
[WhiteClock "0:00:02"]
[BlackClock "0:00:06"]

1. e4 {[%clk 0:03:00]}  c5 {[%clk 0:02:59]} 2. Nc3 {[%clk 0:03:01]}  Nc6 {[%clk 0:02:56]} 3. Bb5 {[%clk 0:03:01]}  g6 {[%clk 0:02:56]} 4. Bxc6 {[%clk 0:03:01]}  bxc6 {[%clk 0:02:57]} 5. f4 {[%clk 0:03:02]}  Bg7 {[%clk 0:02:57]} 6. Nf3 {[%clk 0:03:03]}  d5 {[%clk 0:02:55]} 7. O-O {[%clk 0:02:58]}  e6 {[%clk 0:02:50]} 8. d3 {[%clk 0:02:57]}  Nf6 {[%clk 0:02:13]} 9. e5 {[%clk 0:02:54]}  Ng4 {[%clk 0:02:10]} 10. h3 {[%clk 0:02:50]}  Nh6 {[%clk 0:01:55]} 11. b3 {[%clk 0:02:46]}  Nf5 {[%clk 0:01:48]} 12. g4 {[%clk 0:02:44]}  Nd4 {[%clk 0:01:46]} 13. Na4 {[%clk 0:02:35]}  Bf8 {[%clk 0:01:43]} 14. Be3 {[%clk 0:02:23]}  h5 {[%clk 0:01:40]} 15. Kg2 {[%clk 0:02:10]}  Nxf3 {[%clk 0:01:35]} 16. Qxf3 {[%clk 0:02:08]}  d4 {[%clk 0:01:36]} 17. Bd2 {[%clk 0:01:57]}  Be7 {[%clk 0:01:36]} 18. Nb2 {[%clk 0:01:42]}  Qd5 {[%clk 0:01:33]} 19. Rae1 {[%clk 0:01:30]}  hxg4 {[%clk 0:01:29]} 20. hxg4 {[%clk 0:01:31]}  Rh4 {[%clk 0:01:30]} 21. Kg3 {[%clk 0:01:22]}  Bb7 {[%clk 0:01:29]} 22. Rh1 {[%clk 0:01:14]}  Qxf3+ {[%clk 0:01:25]} 23. Kxf3 {[%clk 0:01:15]}  Kf8 {[%clk 0:01:06]} 24. Rxh4 {[%clk 0:01:07]}  Bxh4 {[%clk 0:01:07]} 25. Rh1 {[%clk 0:01:07]}  Be7 {[%clk 0:01:02]} 26. Rh8+ {[%clk 0:01:03]}  Kg7 {[%clk 0:01:01]} 27. Rxa8 {[%clk 0:01:04]}  Bxa8 {[%clk 0:01:02]} 28. Nc4 {[%clk 0:00:51]}  Bb7 {[%clk 0:01:02]} 29. Ba5 {[%clk 0:00:44]}  Ba6 {[%clk 0:01:01]} 30. Nd2 {[%clk 0:00:24]}  Kf8 {[%clk 0:00:56]} 31. Ne4 {[%clk 0:00:22]}  Ke8 {[%clk 0:00:47]} 32. Bc7 {[%clk 0:00:22]}  c4 {[%clk 0:00:43]} 33. bxc4 {[%clk 0:00:19]}  Bb7 {[%clk 0:00:41]} 34. c5 {[%clk 0:00:14]}  Ba6 {[%clk 0:00:37]} 35. Bb8 {[%clk 0:00:14]}  Bb5 {[%clk 0:00:34]} 36. Bxa7 {[%clk 0:00:14]}  Ba4 {[%clk 0:00:32]} 37. Bb8 {[%clk 0:00:08]}  Bxc2 {[%clk 0:00:29]} 38. Ke2 {[%clk 0:00:09]}  Bh4 {[%clk 0:00:23]} 39. g5 {[%clk 0:00:08]}  Ke7 {[%clk 0:00:21]} 40. Bd6+ {[%clk 0:00:08]}  Kd8 {[%clk 0:00:18]} 41. Kd2 {[%clk 0:00:07]}  Bb1 {[%clk 0:00:15]} 42. a4 {[%clk 0:00:07]}  Kc8 {[%clk 0:00:13]} 43. Be7 {[%clk 0:00:05]}  Kd7 {[%clk 0:00:11]} 44. Bf8 {[%clk 0:00:05]}  Kc7 {[%clk 0:00:08]} 45. a5 {[%clk 0:00:04]}  Kb7 {[%clk 0:00:07]} 46. Be7 {[%clk 0:00:04]}  Ka6 {[%clk 0:00:06]} 47. Bd8 {[%clk 0:00:05]}  Ba2 {[%clk 0:00:04]} 48. Nd6 {[%clk 0:00:04]}  Bg3 {[%clk 0:00:04]} 49. Nxf7 {[%clk 0:00:03]}  Bxf4+ {[%clk 0:00:04]} 50. Ke2 {[%clk 0:00:04]}  Bd5 {[%clk 0:00:04]} 51. Bb6 {[%clk 0:00:04]}  Bg2 {[%clk 0:00:03]} 52. Nh8 {[%clk 0:00:02]}  Bxg5 {[%clk 0:00:03]} 53. Nxg6 {[%clk 0:00:02]}  Bh3 {[%clk 0:00:04]} 54. Kf3 {[%clk 0:00:01]}  Bf5 {[%clk 0:00:04]} 55. Nf4 {[%clk 0:00:02]}  Bxf4 {[%clk 0:00:04]} 56. Kxf4 {[%clk 0:00:02]}  Bxd3 {[%clk 0:00:05]} 57. Kg5 {[%clk 0:00:02]}  Bf5 {[%clk 0:00:05]} 58. Kf4 {[%clk 0:00:03]}  Kb5 {[%clk 0:00:05]} 59. Kf3 {[%clk 0:00:03]}  Bd3 {[%clk 0:00:04]} 60. Kf2 {[%clk 0:00:03]}  Kb4 {[%clk 0:00:05]} 61. Ke1 {[%clk 0:00:03]}  Kc3 {[%clk 0:00:05]} 62. Kd1 {[%clk 0:00:02]}  Bc2+ {[%clk 0:00:06]} 63. Kc1 {[%clk 0:00:02]}  d3 {[%clk 0:00:06]} 0-1


[Site "https://www.chess.com"]

[Event "Titled Tuesday Blitz October 11 Early 2022"]
[White "Malek, Jan"]
[Black "Shimanov, Aleksandr"]
[WhiteFideId "21864080"]
[BlackFideId "4198603"]
[WhiteElo "2255"]
[BlackElo "2605"]
[Result "1-0"]
[Round "06"]
[TimeControl "180+1"]
[Date "2022.10.11"]
[WhiteClock "0:00:17"]
[BlackClock "0:00:03"]

1. c4 {[%clk 0:03:00]}  Nf6 {[%clk 0:02:52]} 2. Nf3 {[%clk 0:02:59]}  g6 {[%clk 0:02:48]} 3. d4 {[%clk 0:02:57]}  Bg7 {[%clk 0:02:48]} 4. Nc3 {[%clk 0:02:57]}  O-O {[%clk 0:02:47]} 5. e4 {[%clk 0:02:57]}  d6 {[%clk 0:02:48]} 6. Be2 {[%clk 0:02:56]}  e5 {[%clk 0:02:46]} 7. O-O {[%clk 0:02:56]}  h6 {[%clk 0:02:46]} 8. h3 {[%clk 0:02:43]}  Nc6 {[%clk 0:02:42]} 9. Be3 {[%clk 0:02:42]}  exd4 {[%clk 0:02:38]} 10. Nxd4 {[%clk 0:02:42]}  Re8 {[%clk 0:02:39]} 11. Qc2 {[%clk 0:02:37]}  Qe7 {[%clk 0:02:35]} 12. Rad1 {[%clk 0:02:21]}  Nxe4 {[%clk 0:02:07]} 13. Nd5 {[%clk 0:01:58]}  Qd8 {[%clk 0:02:07]} 14. Nb5 {[%clk 0:01:56]}  Bf5 {[%clk 0:01:49]} 15. g4 {[%clk 0:01:53]}  Nxf2 {[%clk 0:00:44]} 16. gxf5 {[%clk 0:01:30]}  Nxd1 {[%clk 0:00:28]} 17. Qxd1 {[%clk 0:01:30]}  Rxe3 {[%clk 0:00:14]} 18. Nxe3 {[%clk 0:01:29]}  Qg5+ {[%clk 0:00:15]} 19. Ng2 {[%clk 0:01:29]}  Re8 {[%clk 0:00:11]} 20. fxg6 {[%clk 0:01:26]}  fxg6 {[%clk 0:00:11]} 21. Nxc7 {[%clk 0:01:18]}  Bd4+ {[%clk 0:00:08]} 22. Kh1 {[%clk 0:01:17]}  Qg3 {[%clk 0:00:08]} 23. Rf3 {[%clk 0:01:13]}  Qe5 {[%clk 0:00:05]} 24. Nxe8 {[%clk 0:01:12]}  Qxe8 {[%clk 0:00:05]} 25. Rd3 {[%clk 0:01:09]}  Qe5 {[%clk 0:00:05]} 26. Bf3 {[%clk 0:01:07]}  Bc5 {[%clk 0:00:04]} 27. Bxc6 {[%clk 0:01:01]}  bxc6 {[%clk 0:00:05]} 28. Qe1 {[%clk 0:00:59]}  Qf5 {[%clk 0:00:04]} 29. Rb3 {[%clk 0:00:48]}  h5 {[%clk 0:00:02]} 30. Kh2 {[%clk 0:00:27]}  Kg7 {[%clk 0:00:02]} 31. Qe7+ {[%clk 0:00:25]}  Kh6 {[%clk 0:00:02]} 32. Rg3 {[%clk 0:00:22]}  Bd4 {[%clk 0:00:02]} 33. h4 {[%clk 0:00:15]}  Be5 {[%clk 0:00:02]} 34. Qg5+ {[%clk 0:00:16]}  Qxg5 {[%clk 0:00:02]} 35. hxg5+ {[%clk 0:00:17]}  Kg7 {[%clk 0:00:03]} 36. Kh3 {[%clk 0:00:17]} 1-0


[Site "https://www.chess.com"]

[Event "Titled Tuesday Blitz October 11 Early 2022"]
[White "Martin Carmona, Gaston Manuel"]
[Black "Matveeva, Olga"]
[WhiteFideId "22284567"]
[BlackFideId "24107018"]
[WhiteElo "2235"]
[BlackElo "2055"]
[Result "1-0"]
[Round "06"]
[TimeControl "180+1"]
[Date "2022.10.12"]
[WhiteClock "0:00:48"]
[BlackClock "0:00:12"]

1. d4 {[%clk 0:02:54]}  Nf6 {[%clk 0:02:59]} 2. Nf3 {[%clk 0:02:52]}  e6 {[%clk 0:02:59]} 3. c4 {[%clk 0:02:52]}  Bb4+ {[%clk 0:02:57]} 4. Nbd2 {[%clk 0:02:51]}  c5 {[%clk 0:02:51]} 5. a3 {[%clk 0:02:49]}  Bxd2+ {[%clk 0:02:46]} 6. Qxd2 {[%clk 0:02:50]}  cxd4 {[%clk 0:02:44]} 7. Qxd4 {[%clk 0:02:49]}  Nc6 {[%clk 0:02:43]} 8. Qc3 {[%clk 0:02:48]}  O-O {[%clk 0:02:41]} 9. e3 {[%clk 0:02:39]}  d5 {[%clk 0:02:40]} 10. Be2 {[%clk 0:02:33]}  dxc4 {[%clk 0:02:35]} 11. Bxc4 {[%clk 0:02:34]}  b6 {[%clk 0:02:20]} 12. O-O {[%clk 0:02:32]}  Bb7 {[%clk 0:02:19]} 13. b4 {[%clk 0:02:25]}  Rc8 {[%clk 0:02:18]} 14. Qb3 {[%clk 0:02:20]}  Ne7 {[%clk 0:02:13]} 15. Be2 {[%clk 0:02:19]}  Qd5 {[%clk 0:02:08]} 16. Qb1 {[%clk 0:01:57]}  Rfd8 {[%clk 0:02:00]} 17. Bb2 {[%clk 0:01:54]}  Ne4 {[%clk 0:01:51]} 18. Rd1 {[%clk 0:01:49]}  Qb3 {[%clk 0:01:46]} 19. Nd4 {[%clk 0:01:47]}  Qd5 {[%clk 0:01:33]} 20. Bf3 {[%clk 0:01:47]}  Ng6 {[%clk 0:01:00]} 21. Bxe4 {[%clk 0:01:36]}  Qxe4 {[%clk 0:01:00]} 22. Qxe4 {[%clk 0:01:37]}  Bxe4 {[%clk 0:01:00]} 23. Rac1 {[%clk 0:01:37]}  e5 {[%clk 0:00:52]} 24. Nb5 {[%clk 0:01:35]}  Rxc1 {[%clk 0:00:48]} 25. Rxc1 {[%clk 0:01:34]}  a6 {[%clk 0:00:46]} 26. Nc7 {[%clk 0:01:17]}  a5 {[%clk 0:00:43]} 27. f3 {[%clk 0:01:05]}  Bb7 {[%clk 0:00:41]} 28. bxa5 {[%clk 0:01:03]}  bxa5 {[%clk 0:00:41]} 29. Rc5 {[%clk 0:01:03]}  Rd1+ {[%clk 0:00:38]} 30. Kf2 {[%clk 0:01:03]}  Rd2+ {[%clk 0:00:38]} 31. Kg3 {[%clk 0:01:03]}  Rxb2 {[%clk 0:00:37]} 32. Rxa5 {[%clk 0:00:58]}  h5 {[%clk 0:00:37]} 33. h4 {[%clk 0:00:58]}  Ne7 {[%clk 0:00:33]} 34. Rxe5 {[%clk 0:00:56]}  Ng6 {[%clk 0:00:20]} 35. Rxh5 {[%clk 0:00:56]}  f6 {[%clk 0:00:18]} 36. Rb5 {[%clk 0:00:55]}  Rxb5 {[%clk 0:00:17]} 37. Nxb5 {[%clk 0:00:56]}  Kf7 {[%clk 0:00:17]} 38. Nd6+ {[%clk 0:00:56]}  Ke6 {[%clk 0:00:17]} 39. Nxb7 {[%clk 0:00:57]}  Kd5 {[%clk 0:00:17]} 40. Nd8 {[%clk 0:00:56]}  Kd6 {[%clk 0:00:17]} 41. a4 {[%clk 0:00:56]}  Kd7 {[%clk 0:00:17]} 42. Nf7 {[%clk 0:00:51]}  Ke7 {[%clk 0:00:16]} 43. a5 {[%clk 0:00:47]}  Kxf7 {[%clk 0:00:16]} 44. a6 {[%clk 0:00:48]}  Ne7 {[%clk 0:00:14]} 45. a7 {[%clk 0:00:48]}  Nf5+ {[%clk 0:00:12]} 46. Kf2 {[%clk 0:00:48]} 1-0


[Site "https://www.chess.com"]

[Event "Titled Tuesday Blitz October 11 Early 2022"]
[White "Matinian, Nikita"]
[Black "Slaby, Jerzy"]
[WhiteFideId "24129100"]
[BlackFideId "1121405"]
[WhiteElo "2422"]
[BlackElo "2546"]
[Result "1-0"]
[Round "06"]
[TimeControl "180+1"]
[Date "2022.10.12"]
[WhiteClock "0:01:12"]
[BlackClock "0:00:28"]

1. e4 {[%clk 0:03:00]}  c5 {[%clk 0:02:39]} 2. Nf3 {[%clk 0:02:58]}  d6 {[%clk 0:02:38]} 3. d4 {[%clk 0:02:58]}  cxd4 {[%clk 0:02:39]} 4. Nxd4 {[%clk 0:02:59]}  Nf6 {[%clk 0:02:40]} 5. Nc3 {[%clk 0:03:00]}  g6 {[%clk 0:02:40]} 6. Be3 {[%clk 0:02:59]}  Bg7 {[%clk 0:02:40]} 7. Be2 {[%clk 0:03:00]}  O-O {[%clk 0:02:40]} 8. Qd2 {[%clk 0:03:01]}  Nc6 {[%clk 0:02:34]} 9. O-O-O {[%clk 0:03:00]}  Nxd4 {[%clk 0:02:33]} 10. Bxd4 {[%clk 0:03:00]}  Be6 {[%clk 0:02:33]} 11. h4 {[%clk 0:02:59]}  Qa5 {[%clk 0:02:32]} 12. a3 {[%clk 0:02:54]}  Rfc8 {[%clk 0:02:30]} 13. Kb1 {[%clk 0:02:51]}  b5 {[%clk 0:02:23]} 14. Bxf6 {[%clk 0:02:46]}  exf6 {[%clk 0:01:54]} 15. Nd5 {[%clk 0:02:43]}  Qd8 {[%clk 0:01:48]} 16. h5 {[%clk 0:02:40]}  Rc5 {[%clk 0:01:37]} 17. h6 {[%clk 0:02:39]}  Bh8 {[%clk 0:01:34]} 18. Nf4 {[%clk 0:02:25]}  Rac8 {[%clk 0:01:03]} 19. Nxe6 {[%clk 0:02:00]}  fxe6 {[%clk 0:01:03]} 20. Qxd6 {[%clk 0:02:01]}  Qxd6 {[%clk 0:01:02]} 21. Rxd6 {[%clk 0:02:02]}  Rxc2 {[%clk 0:01:03]} 22. Bxb5 {[%clk 0:01:39]}  f5 {[%clk 0:01:02]} 23. Rd8+ {[%clk 0:01:39]}  Rxd8 {[%clk 0:00:55]} 24. Kxc2 {[%clk 0:01:40]}  fxe4 {[%clk 0:00:54]} 25. Rh4 {[%clk 0:01:34]}  Rb8 {[%clk 0:00:53]} 26. a4 {[%clk 0:01:32]}  a6 {[%clk 0:00:53]} 27. Bxa6 {[%clk 0:01:31]}  Rxb2+ {[%clk 0:00:53]} 28. Kd1 {[%clk 0:01:31]}  Rxf2 {[%clk 0:00:52]} 29. Rxe4 {[%clk 0:01:31]}  Kf7 {[%clk 0:00:51]} 30. Bc4 {[%clk 0:01:31]}  Rxg2 {[%clk 0:00:46]} 31. a5 {[%clk 0:01:25]}  Rg1+ {[%clk 0:00:39]} 32. Kc2 {[%clk 0:01:25]}  Ra1 {[%clk 0:00:40]} 33. a6 {[%clk 0:01:25]}  g5 {[%clk 0:00:38]} 34. Rxe6 {[%clk 0:01:24]}  Kf8 {[%clk 0:00:37]} 35. Rb6 {[%clk 0:01:21]}  Bd4 {[%clk 0:00:36]} 36. Rb8+ {[%clk 0:01:12]}  Ke7 {[%clk 0:00:36]} 37. Rb7+ {[%clk 0:01:13]}  Kf6 {[%clk 0:00:36]} 38. Rxh7 {[%clk 0:01:14]}  Kg6 {[%clk 0:00:36]} 39. Rd7 {[%clk 0:01:12]}  Be5 {[%clk 0:00:30]} 40. h7 {[%clk 0:01:13]}  g4 {[%clk 0:00:31]} 41. Bd3+ {[%clk 0:01:12]}  Kg5 {[%clk 0:00:28]} 42. Rd5 {[%clk 0:01:12]} 1-0


[Site "https://www.chess.com"]

[Event "Titled Tuesday Blitz October 11 Early 2022"]
[White "Mikhailovsky, Vladimir"]
[Black "Principe, Gerson"]
[WhiteFideId "34105414"]
[BlackFideId "3804550"]
[WhiteElo "2297"]
[BlackElo "2280"]
[Result "1-0"]
[Round "06"]
[TimeControl "180+1"]
[Date "2022.10.12"]
[WhiteClock "0:00:03"]
[BlackClock "0:00:02"]

1. e4 {[%clk 0:02:50]}  c6 {[%clk 0:02:57]} 2. d4 {[%clk 0:02:46]}  d5 {[%clk 0:02:58]} 3. e5 {[%clk 0:02:47]}  Bf5 {[%clk 0:02:58]} 4. Nd2 {[%clk 0:02:47]}  e6 {[%clk 0:02:56]} 5. Nb3 {[%clk 0:02:47]}  Nd7 {[%clk 0:02:56]} 6. Nf3 {[%clk 0:02:47]}  Bg6 {[%clk 0:02:49]} 7. Be2 {[%clk 0:02:44]}  Ne7 {[%clk 0:02:41]} 8. O-O {[%clk 0:02:13]}  Nf5 {[%clk 0:02:40]} 9. a4 {[%clk 0:02:13]}  Be7 {[%clk 0:02:39]} 10. g4 {[%clk 0:02:12]}  Nh4 {[%clk 0:02:38]} 11. Nxh4 {[%clk 0:02:11]}  Bxh4 {[%clk 0:02:39]} 12. f4 {[%clk 0:02:10]}  f6 {[%clk 0:02:29]} 13. f5 {[%clk 0:02:04]}  Bf7 {[%clk 0:02:29]} 14. exf6 {[%clk 0:01:36]}  Bxf6 {[%clk 0:02:22]} 15. fxe6 {[%clk 0:01:05]}  Bxe6 {[%clk 0:02:20]} 16. Bd3 {[%clk 0:01:06]}  O-O {[%clk 0:02:10]} 17. Bf4 {[%clk 0:00:55]}  Bg5 {[%clk 0:02:00]} 18. Qd2 {[%clk 0:00:46]}  Bxf4 {[%clk 0:01:29]} 19. Rxf4 {[%clk 0:00:47]}  Rxf4 {[%clk 0:01:29]} 20. Qxf4 {[%clk 0:00:48]}  Qf6 {[%clk 0:01:29]} 21. Qxf6 {[%clk 0:00:39]}  Nxf6 {[%clk 0:01:24]} 22. h3 {[%clk 0:00:39]}  Re8 {[%clk 0:01:03]} 23. Re1 {[%clk 0:00:36]}  Bc8 {[%clk 0:01:02]} 24. Rxe8+ {[%clk 0:00:33]}  Nxe8 {[%clk 0:01:03]} 25. Kf2 {[%clk 0:00:30]}  Kf7 {[%clk 0:01:01]} 26. Ke3 {[%clk 0:00:30]}  h6 {[%clk 0:00:58]} 27. Na5 {[%clk 0:00:19]}  Nd6 {[%clk 0:00:51]} 28. b3 {[%clk 0:00:19]}  g5 {[%clk 0:00:50]} 29. c4 {[%clk 0:00:19]}  dxc4 {[%clk 0:00:18]} 30. bxc4 {[%clk 0:00:19]}  Ke7 {[%clk 0:00:16]} 31. c5 {[%clk 0:00:19]}  Ne8 {[%clk 0:00:15]} 32. Bf5 {[%clk 0:00:18]}  Kd8 {[%clk 0:00:12]} 33. Ke4 {[%clk 0:00:17]}  Nc7 {[%clk 0:00:07]} 34. Ke5 {[%clk 0:00:15]}  Nd5 {[%clk 0:00:07]} 35. Nc4 {[%clk 0:00:15]}  Nc3 {[%clk 0:00:06]} 36. a5 {[%clk 0:00:14]}  Ne2 {[%clk 0:00:06]} 37. Nd6 {[%clk 0:00:13]}  Bxf5 {[%clk 0:00:05]} 38. gxf5 {[%clk 0:00:12]}  Nf4 {[%clk 0:00:03]} 39. Nxb7+ {[%clk 0:00:08]}  Kc7 {[%clk 0:00:02]} 40. Nd6 {[%clk 0:00:04]}  Nxh3 {[%clk 0:00:03]} 41. f6 {[%clk 0:00:05]}  Kd7 {[%clk 0:00:03]} 42. Kf5 {[%clk 0:00:03]}  Nf4 {[%clk 0:00:04]} 43. Ne4 {[%clk 0:00:04]}  Nd5 {[%clk 0:00:03]} 44. Kg6 {[%clk 0:00:03]}  g4 {[%clk 0:00:03]} 45. f7 {[%clk 0:00:02]}  Ke7 {[%clk 0:00:02]} 46. Kg7 {[%clk 0:00:03]} 1-0


[Site "https://www.chess.com"]

[Event "Titled Tuesday Blitz October 11 Early 2022"]
[White "Mills, Morgen"]
[Black "Omariev, Maksim"]
[WhiteFideId "2013304"]
[BlackFideId "4193423"]
[WhiteElo "2203"]
[BlackElo "2432"]
[Result "0-1"]
[Round "06"]
[TimeControl "180+1"]
[Date "2022.10.12"]
[WhiteClock "0:00:04"]
[BlackClock "0:00:05"]

1. e4 {[%clk 0:02:33]}  c5 {[%clk 0:02:59]} 2. Nf3 {[%clk 0:02:33]}  d6 {[%clk 0:03:00]} 3. Bb5+ {[%clk 0:02:32]}  Nd7 {[%clk 0:02:59]} 4. d4 {[%clk 0:02:31]}  cxd4 {[%clk 0:02:59]} 5. Qxd4 {[%clk 0:02:32]}  Nf6 {[%clk 0:02:38]} 6. O-O {[%clk 0:02:30]}  a6 {[%clk 0:02:37]} 7. Bxd7+ {[%clk 0:02:30]}  Bxd7 {[%clk 0:02:33]} 8. c4 {[%clk 0:02:30]}  g6 {[%clk 0:02:25]} 9. Nc3 {[%clk 0:02:28]}  Bg7 {[%clk 0:02:26]} 10. h3 {[%clk 0:02:14]}  O-O {[%clk 0:02:26]} 11. Qd3 {[%clk 0:02:13]}  Rc8 {[%clk 0:02:24]} 12. b3 {[%clk 0:02:13]}  b5 {[%clk 0:02:13]} 13. Bb2 {[%clk 0:01:41]}  bxc4 {[%clk 0:02:10]} 14. bxc4 {[%clk 0:01:42]}  Qc7 {[%clk 0:01:30]} 15. Nd5 {[%clk 0:01:22]}  Nxd5 {[%clk 0:01:29]} 16. Bxg7 {[%clk 0:01:22]}  Nf4 {[%clk 0:01:27]} 17. Qe3 {[%clk 0:01:05]}  Nxh3+ {[%clk 0:01:27]} 18. gxh3 {[%clk 0:01:04]}  Kxg7 {[%clk 0:01:28]} 19. Nd2 {[%clk 0:00:43]}  Qc5 {[%clk 0:01:19]} 20. Qc3+ {[%clk 0:00:40]}  f6 {[%clk 0:01:14]} 21. Rab1 {[%clk 0:00:40]}  Qh5 {[%clk 0:01:01]} 22. Kh2 {[%clk 0:00:35]}  Rc5 {[%clk 0:01:02]} 23. Rb7 {[%clk 0:00:29]}  Rd8 {[%clk 0:01:01]} 24. Rg1 {[%clk 0:00:19]}  Qe2 {[%clk 0:00:35]} 25. Qe3 {[%clk 0:00:15]}  Qxe3 {[%clk 0:00:26]} 26. fxe3 {[%clk 0:00:16]}  Rh5 {[%clk 0:00:27]} 27. Rg3 {[%clk 0:00:15]}  Kf7 {[%clk 0:00:27]} 28. Nf3 {[%clk 0:00:15]}  Be6 {[%clk 0:00:16]} 29. Rc7 {[%clk 0:00:10]}  Rb8 {[%clk 0:00:15]} 30. Nd4 {[%clk 0:00:04]}  Rb2+ {[%clk 0:00:13]} 31. Kg1 {[%clk 0:00:04]}  Rxh3 {[%clk 0:00:12]} 32. Rxh3 {[%clk 0:00:03]}  Bxh3 {[%clk 0:00:13]} 33. Nc6 {[%clk 0:00:04]}  g5 {[%clk 0:00:09]} 34. Rxe7+ {[%clk 0:00:03]}  Kg6 {[%clk 0:00:09]} 35. Re8 {[%clk 0:00:02]}  Rxa2 {[%clk 0:00:09]} 36. Rg8+ {[%clk 0:00:03]}  Kf7 {[%clk 0:00:08]} 37. Rh8 {[%clk 0:00:03]}  Kg7 {[%clk 0:00:09]} 38. Rd8 {[%clk 0:00:03]}  h5 {[%clk 0:00:09]} 39. Rxd6 {[%clk 0:00:04]}  h4 {[%clk 0:00:09]} 40. Ne7 {[%clk 0:00:04]}  Bg4 {[%clk 0:00:08]} 41. Nf5+ {[%clk 0:00:05]}  Bxf5 {[%clk 0:00:08]} 42. exf5 {[%clk 0:00:05]}  g4 {[%clk 0:00:07]} 43. Rd4 {[%clk 0:00:04]}  g3 {[%clk 0:00:03]} 44. Rg4+ {[%clk 0:00:04]}  Kf7 {[%clk 0:00:03]} 45. Rxh4 {[%clk 0:00:04]}  Ke7 {[%clk 0:00:03]} 46. Rg4 {[%clk 0:00:05]}  g2 {[%clk 0:00:02]} 47. Rxg2 {[%clk 0:00:05]}  Rxg2+ {[%clk 0:00:03]} 48. Kxg2 {[%clk 0:00:06]}  a5 {[%clk 0:00:03]} 49. c5 {[%clk 0:00:02]}  a4 {[%clk 0:00:04]} 50. e4 {[%clk 0:00:02]}  a3 {[%clk 0:00:05]} 51. e5 {[%clk 0:00:03]}  a2 {[%clk 0:00:04]} 52. exf6+ {[%clk 0:00:03]}  Kxf6 {[%clk 0:00:04]} 53. c6 {[%clk 0:00:04]}  a1=Q {[%clk 0:00:05]} 54. c7 {[%clk 0:00:04]}  Qc3 {[%clk 0:00:05]} 0-1


[Site "https://www.chess.com"]

[Event "Titled Tuesday Blitz October 11 Early 2022"]
[White "Orlov, Georgi"]
[Black "Siva Mahadevan"]
[WhiteFideId "2011271"]
[BlackFideId "25043153"]
[WhiteElo "2579"]
[BlackElo "2249"]
[Result "0-1"]
[Round "06"]
[TimeControl "180+1"]
[Date "2022.10.12"]
[WhiteClock "0:00:02"]
[BlackClock "0:00:07"]

1. d4 {[%clk 0:03:00]}  Nf6 {[%clk 0:02:59]} 2. Nf3 {[%clk 0:03:00]}  g6 {[%clk 0:02:59]} 3. c4 {[%clk 0:03:00]}  Bg7 {[%clk 0:03:00]} 4. Nc3 {[%clk 0:03:01]}  O-O {[%clk 0:02:59]} 5. e4 {[%clk 0:03:01]}  d6 {[%clk 0:03:00]} 6. Be2 {[%clk 0:03:01]}  Nbd7 {[%clk 0:02:59]} 7. O-O {[%clk 0:02:59]}  e5 {[%clk 0:02:59]} 8. Be3 {[%clk 0:02:55]}  c6 {[%clk 0:02:57]} 9. Qc2 {[%clk 0:02:53]}  h6 {[%clk 0:02:54]} 10. Rad1 {[%clk 0:02:52]}  Ng4 {[%clk 0:02:53]} 11. Bc1 {[%clk 0:02:51]}  exd4 {[%clk 0:02:34]} 12. Nxd4 {[%clk 0:02:50]}  Nc5 {[%clk 0:02:35]} 13. b4 {[%clk 0:02:43]}  Ne6 {[%clk 0:02:24]} 14. Nb3 {[%clk 0:02:35]}  Qh4 {[%clk 0:01:45]} 15. h3 {[%clk 0:02:33]}  Nf6 {[%clk 0:01:44]} 16. Rxd6 {[%clk 0:02:08]}  Nf4 {[%clk 0:01:41]} 17. Bxf4 {[%clk 0:02:05]}  Qxf4 {[%clk 0:01:42]} 18. c5 {[%clk 0:02:04]}  Nh7 {[%clk 0:01:30]} 19. Qc1 {[%clk 0:01:36]}  Qe5 {[%clk 0:01:24]} 20. Rd3 {[%clk 0:01:30]}  g5 {[%clk 0:01:05]} 21. Nd4 {[%clk 0:01:26]}  Nf6 {[%clk 0:01:00]} 22. Bf3 {[%clk 0:01:17]}  Bd7 {[%clk 0:00:57]} 23. Rfd1 {[%clk 0:01:16]}  Rfe8 {[%clk 0:00:55]} 24. Nde2 {[%clk 0:01:13]}  Be6 {[%clk 0:00:53]} 25. Qc2 {[%clk 0:01:06]}  Bc4 {[%clk 0:00:50]} 26. Rd4 {[%clk 0:01:03]}  Qe6 {[%clk 0:00:48]} 27. Ng3 {[%clk 0:00:58]}  Nh7 {[%clk 0:00:40]} 28. Bg4 {[%clk 0:00:52]}  f5 {[%clk 0:00:39]} 29. Bxf5 {[%clk 0:00:43]}  Qf7 {[%clk 0:00:39]} 30. e5 {[%clk 0:00:38]}  Nf8 {[%clk 0:00:29]} 31. Nce4 {[%clk 0:00:34]}  Bd5 {[%clk 0:00:22]} 32. Nd6 {[%clk 0:00:31]}  Qe7 {[%clk 0:00:22]} 33. Nxe8 {[%clk 0:00:30]}  Rxe8 {[%clk 0:00:23]} 34. Be4 {[%clk 0:00:20]}  Be6 {[%clk 0:00:15]} 35. Nf5 {[%clk 0:00:20]}  Bxf5 {[%clk 0:00:15]} 36. Bxf5 {[%clk 0:00:20]}  Qxe5 {[%clk 0:00:16]} 37. Rd6 {[%clk 0:00:17]}  Qf4 {[%clk 0:00:14]} 38. g3 {[%clk 0:00:17]}  Qe5 {[%clk 0:00:11]} 39. Bd3 {[%clk 0:00:15]}  Kh8 {[%clk 0:00:09]} 40. Bc4 {[%clk 0:00:15]}  a5 {[%clk 0:00:09]} 41. a3 {[%clk 0:00:15]}  axb4 {[%clk 0:00:09]} 42. axb4 {[%clk 0:00:15]}  Qe7 {[%clk 0:00:09]} 43. Qd2 {[%clk 0:00:14]}  Qe4 {[%clk 0:00:07]} 44. Qd3 {[%clk 0:00:12]}  Qe5 {[%clk 0:00:07]} 45. Kg2 {[%clk 0:00:12]}  Bf6 {[%clk 0:00:06]} 46. Qf3 {[%clk 0:00:11]}  Kg7 {[%clk 0:00:06]} 47. h4 {[%clk 0:00:11]}  gxh4 {[%clk 0:00:07]} 48. gxh4 {[%clk 0:00:11]}  Ng6 {[%clk 0:00:07]} 49. Kh1 {[%clk 0:00:10]}  Nxh4 {[%clk 0:00:07]} 50. Rg1+ {[%clk 0:00:09]}  Bg5 {[%clk 0:00:06]} 51. Qg4 {[%clk 0:00:09]}  Qe4+ {[%clk 0:00:05]} 52. Qxe4 {[%clk 0:00:06]}  Rxe4 {[%clk 0:00:06]} 53. Bd3 {[%clk 0:00:06]}  Rxb4 {[%clk 0:00:06]} 54. Rg3 {[%clk 0:00:05]}  Rf4 {[%clk 0:00:06]} 55. Kg1 {[%clk 0:00:05]}  Kf8 {[%clk 0:00:05]} 56. Kf1 {[%clk 0:00:05]}  Nf3 {[%clk 0:00:06]} 57. Ke2 {[%clk 0:00:04]}  Ne5 {[%clk 0:00:06]} 58. Kf1 {[%clk 0:00:02]}  Ke7 {[%clk 0:00:07]} 59. Be2 {[%clk 0:00:02]}  b6 {[%clk 0:00:07]} 60. Re3 {[%clk 0:00:02]}  bxc5 {[%clk 0:00:07]} 61. Rxe5+ {[%clk 0:00:02]}  Kxd6 {[%clk 0:00:06]} 62. Re8 {[%clk 0:00:02]}  Rd4 {[%clk 0:00:07]} 63. Ke1 {[%clk 0:00:02]}  c4 {[%clk 0:00:07]} 64. Rd8+ {[%clk 0:00:02]}  Bxd8 {[%clk 0:00:07]} 0-1


[Site "https://www.chess.com"]